bitfinex/quotes_SOLUSD_20250823
["timestamp","ask_amount","ask_price","bid_price","bid_amount"]
[1755942150798,0.06,204.3,204.29,38.11397717]
[1755942155796,0.73,204.3,204.29,1.958145]
[1755942156403,0.73,204.3,204.29,27.958145]
[1755942157007,10.88583217,204.3,204.29,1.958145]
[1755942158327,10.88583217,204.3,204.27,0.03]
[1755942158621,10.82583217,204.29,204.27,0.03]
[1755942159033,0.67,204.28,204.27,0.03]
[1755942159722,0.67,204.28,204.27,10.245832]
[1755942165023,0.06,204.3,204.27,10.245832]
[1755942165324,0.67,204.29,204.27,10.245832]
[1755942166225,0.67,204.29,204.27,20.40166417]
[1755942166409,0.67,204.29,204.27,10.18583217]
[1755942166605,0.06,204.3,204.27,10.18583217]
[1755942166810,0.73,204.3,204.28,1.959104]
[1755942167123,0.73,204.3,204.27,10.18583217]
[1755942167426,0.73,204.3,204.29,1.959104]
[1755942168136,0.06,204.3,204.29,1.959104]
[1755942168720,0.73,204.3,204.29,1.959104]
[1755942172518,10.88583217,204.3,204.29,1.959104]
[1755942172719,10.88583217,204.3,204.27,0.03]
[1755942172925,10.88583217,204.3,204.28,10.215833]
[1755942172926,0.67,204.29,204.28,10.215833]
[1755942174130,0.06,204.3,204.28,10.215833]
[1755942174629,0.06,204.3,204.29,10.15583217]
[1755942174834,0.06,204.3,204.29,10.84583217]
[1755942175031,0.41,204.33,204.29,10.15583217]
[1755942176435,0.06,204.35,204.29,10.15583217]
[1755942176638,10.21583217,204.35,204.28,20.37166517]
[1755942177021,0.06,204.29,204.28,20.37166517]
[1755942177616,0.06,204.29,204.28,10.215833]
[1755942178218,0.06,204.29,204.28,10.885833]
[1755942178734,0.06,204.29,204.28,10.215833]
[1755942179337,0.06,204.29,204.28,20.37166517]
[1755942181134,0.06,204.29,204.28,21.04166517]
[1755942182014,0.06,204.29,204.28,21.32598831]
[1755942182214,0.06,204.29,204.28,34.92158232]
[1755942182418,0.06,204.35,204.34,10.15583217]
[1755942183146,0.06,204.35,204.34,12.78397717]
[1755942190244,0.06,204.35,204.34,12.11397717]
[1755942192044,0.06,204.35,204.34,1.958145]
[1755942192045,0.75,204.35,204.34,1.958145]
[1755942194223,0.75,204.35,204.34,27.958145]
[1755942196322,0.75,204.35,204.34,1.958145]
[1755942197136,0.75,204.35,204.34,27.958145]
[1755942197451,0.75,204.35,204.34,1.958145]
[1755942197648,0.75,204.35,204.28,0.03]
[1755942197649,24.50142618,204.35,204.28,0.03]
[1755942197822,10.15583217,204.33,204.28,0.03]
[1755942198029,10.15583217,204.33,204.31,10.155832]
[1755942198228,10.84583217,204.32,204.31,10.155832]
[1755942198733,10.84583217,204.32,204.29,10.155832]
[1755942198941,0.69,204.31,204.29,10.155832]
[1755942199326,0.69,204.3,204.29,10.155832]
[1755942201334,10.15583217,204.32,204.29,10.155832]
[1755942201532,0.69,204.3,204.29,10.155832]
[1755942202638,24.44142618,204.34,204.29,10.825832]
[1755942203058,24.44142618,204.34,204.29,0.67]
[1755942203366,24.44142618,204.34,204.3,14.692559]
[1755942203663,23.75142618,204.34,204.3,14.692559]
[1755942203863,0.69,204.33,204.29,0.67]
[1755942204064,0.69,204.33,204.31,14.692558]
[1755942204459,0.69,204.32,204.31,14.692558]
[1755942204865,0.69,204.32,204.28,26.03]
[1755942205057,0.69,204.31,204.29,26.0]
[1755942205368,10.84583217,204.31,204.28,26.03]
[1755942205542,0.69,204.3,204.28,26.03]
[1755942205867,0.69,204.29,204.28,26.03]
[1755942206242,10.84583217,204.31,204.28,0.03]
[1755942206568,0.69,204.3,204.28,0.03]
[1755942207444,0.7,204.29,204.28,0.03]
[1755942207766,10.85583217,204.29,204.28,0.03]
[1755942208148,10.15583217,204.29,204.28,0.03]
[1755942208338,10.85583217,204.29,204.28,0.03]
[1755942208963,24.45142618,204.29,204.28,0.03]
[1755942218971,14.29559401,204.29,204.28,0.03]
[1755942219285,24.45142618,204.29,204.28,0.03]
[1755942221283,14.29559401,204.29,204.28,0.03]
[1755942221486,24.45142618,204.29,204.28,0.03]
[1755942221986,14.29559401,204.29,204.28,0.03]
[1755942222164,24.45142618,204.29,204.28,0.03]
[1755942222484,14.29559401,204.29,204.28,0.03]
[1755942222667,24.45142618,204.29,204.28,0.03]
[1755942223266,14.29559401,204.29,204.28,0.03]
[1755942223464,24.45142618,204.29,204.28,0.03]
[1755942225585,14.29559401,204.29,204.28,0.03]
[1755942225787,24.45142618,204.29,204.28,0.03]
[1755942228962,13.59559401,204.29,204.28,0.03]
[1755942229765,79.0,204.33,204.28,0.03]
[1755942229766,89.15583217,204.33,204.28,0.71]
[1755942229975,13.59559401,204.33,204.28,0.71]
[1755942230267,13.59559401,204.33,204.28,0.03]
[1755942230471,14.29559401,204.33,204.29,0.68]
[1755942231680,0.7,204.32,204.28,0.03]
[1755942232075,10.15583217,204.31,204.28,0.03]
[1755942232584,0.7,204.3,204.28,0.03]
[1755942232969,10.85583217,204.3,204.28,0.03]
[1755942233476,10.85583217,204.29,204.28,0.03]
[1755942234495,14.29559401,204.29,204.28,0.03]
[1755942234666,13.59559401,204.31,204.28,0.71]
[1755942234865,79.7,204.33,204.28,0.71]
[1755942235067,10.15583217,204.32,204.28,0.71]
[1755942235266,10.15583217,204.32,204.28,0.03]
[1755942235495,10.85583217,204.32,204.28,0.03]
[1755942235796,79.0,204.33,204.28,0.03]
[1755942235991,0.06,204.34,204.29,10.83583217]
[1755942236187,0.06,204.34,204.3,0.68]
[1755942236374,0.06,204.34,204.31,0.68]
[1755942236687,0.06,204.34,204.29,0.68]
[1755942236866,0.06,204.34,204.3,0.68]
[1755942237263,0.06,204.34,204.31,0.68]
[1755942237482,0.06,204.34,204.32,0.72]
[1755942238571,0.06,204.34,204.33,0.72]
[1755942239715,0.06,204.34,204.33,10.87583217]
[1755942241773,0.06,204.34,204.33,0.72]
[1755942241979,0.06,204.34,204.33,10.87583217]
[1755942243179,0.06,204.34,204.33,12.83416817]
[1755942243593,0.06,204.34,204.33,1.958336]
[1755942244081,0.06,204.34,204.33,12.83416817]
[1755942244897,0.06,204.34,204.32,10.15583217]
[1755942245210,0.06,204.34,204.32,12.11436017]
[1755942245377,0.06,204.34,204.32,1.958528]
[1755942245584,0.78,204.34,204.32,26.0]
[1755942245800,0.78,204.34,204.3,1.95872]
[1755942246179,0.06,204.34,204.32,26.0]
[1755942246407,0.06,204.34,204.33,26.0]
[1755942246908,0.06,204.34,204.33,36.87583217]
[1755942247886,0.06,204.34,204.33,38.83426417]
[1755942250011,0.06,204.34,204.33,38.11426417]
[1755942250492,0.06,204.34,204.33,38.83426417]
[1755942252311,0.06,204.34,204.33,12.11426417]
[1755942253595,0.06,204.34,204.33,12.83426417]
[1755942254000,0.06,204.34,204.33,13.11858731]
[1755942259617,0.06,204.38,204.33,13.11858731]
[1755942259618,0.06,204.38,204.37,39.87991715]
[1755942259818,0.06,204.38,204.37,50.03574932]
[1755942260122,0.06,204.38,204.37,50.75574932]
[1755942260295,0.06,204.38,204.37,52.71312832]
[1755942263419,0.06,204.38,204.37,53.20243692]
[1755942263823,0.06,204.38,204.37,43.04660475]
[1755942263993,0.06,204.38,204.37,52.71312832]
[1755942264821,0.06,204.38,204.37,39.11753431]
[1755942264993,0.06,204.38,204.37,38.39753431]
[1755942266016,0.06,204.38,204.37,28.24170214]
[1755942266215,0.06,204.38,204.37,38.39753431]
[1755942267619,0.06,204.38,204.37,38.11321117]
[1755942268328,0.06,204.38,204.37,57.65690381]
[1755942268733,0.06,204.38,204.37,43.4013098]
[1755942271939,0.06,204.38,204.37,43.11698666]
[1755942272127,0.72,204.38,204.37,43.11698666]
[1755942272634,0.06,204.38,204.37,43.11698666]
[1755942275130,0.72,204.38,204.37,43.11698666]
[1755942275625,0.06,204.38,204.37,43.11698666]
[1755942275831,0.72,204.38,204.37,43.11698666]
[1755942276733,0.06,204.38,204.37,43.11698666]
[1755942280905,0.06,204.38,204.37,43.77698666]
[1755942281109,0.06,204.38,204.37,43.11698666]
[1755942282126,0.72,204.38,204.37,43.11698666]
[1755942282448,0.06,204.38,204.37,43.11698666]
[1755942289038,0.72,204.38,204.37,43.11698666]
[1755942289246,0.06,204.38,204.37,43.11698666]
[1755942299882,0.06,204.38,204.37,32.96115449]
[1755942300056,0.06,204.38,204.37,43.11698666]
[1755942300380,0.06,204.38,204.37,39.41533171]
[1755942301052,0.06,204.38,204.37,8.41155622]
[1755942301874,7.20417722,204.38,204.37,1.957379]
[1755942302060,7.20417722,204.38,204.35,0.03]
[1755942302366,10.78370105,204.37,204.35,0.03]
[1755942302740,0.69,204.36,204.35,0.03]
[1755942304455,10.78370105,204.36,204.35,0.03]
[1755942305353,0.69,204.36,204.35,0.03]
[1755942306363,0.75,204.38,204.35,10.12370105]
[1755942306671,0.69,204.37,204.35,10.12370105]
[1755942307070,0.69,204.37,204.35,0.03]
[1755942307368,0.69,204.36,204.35,0.03]
[1755942308741,0.06,204.38,204.35,0.03]
[1755942308955,0.06,204.38,204.37,26.0]
[1755942309660,0.06,204.38,204.36,10.09370105]
[1755942309854,0.06,204.38,204.37,10.09370105]
[1755942310045,0.06,204.38,204.37,10.74370105]
[1755942312367,0.06,204.38,204.37,10.09370105]
[1755942312558,0.06,204.38,204.37,36.09370105]
[1755942312762,0.75,204.38,204.37,36.09370105]
[1755942312957,0.75,204.38,204.37,26.0]
[1755942314365,0.75,204.38,204.36,10.09370105]
[1755942314667,0.06,204.38,204.37,12.05184605]
[1755942315168,0.06,204.38,204.37,1.958145]
[1755942318773,0.06,204.38,204.37,12.05184605]
[1755942320476,0.06,204.38,204.37,1.958145]
[1755942321872,0.75,204.38,204.37,1.958145]
[1755942325190,0.75,204.38,204.35,0.03]
[1755942325359,0.69,204.37,204.36,26.0]
[1755942326190,0.06,204.38,204.36,26.0]
[1755942326362,0.75,204.38,204.35,1.988337]
[1755942326562,0.75,204.38,204.37,0.03]
[1755942327157,0.06,204.38,204.37,0.68]
[1755942327357,0.06,204.38,204.37,10.77370105]
[1755942327557,0.06,204.38,204.37,12.73184605]
[1755942330812,0.06,204.38,204.37,2.638145]
[1755942330983,0.06,204.38,204.37,12.73184605]
[1755942335676,0.06,204.38,204.37,12.08184605]
[1755942337177,0.06,204.38,204.37,1.988145]
[1755942337578,0.06,204.38,204.37,38.08184605]
[1755942337777,0.06,204.38,204.37,27.988145]
[1755942338088,0.06,204.38,204.37,38.08184605]
[1755942338268,0.78,204.38,204.37,27.988145]
[1755942338588,0.06,204.38,204.37,27.988145]
[1755942339088,0.78,204.38,204.37,26.03]
[1755942339694,0.06,204.38,204.37,26.03]
[1755942344573,0.06,204.38,204.37,36.77370105]
[1755942344896,0.06,204.38,204.37,10.77370105]
[1755942347505,0.06,204.38,204.37,28.637762]
[1755942347678,0.06,204.38,204.37,38.73146305]
[1755942349919,0.06,204.38,204.37,38.08146305]
[1755942350100,0.06,204.38,204.37,38.73146305]
[1755942350292,0.06,204.38,204.37,38.08146305]
[1755942350990,0.06,204.38,204.37,12.08146305]
[1755942354101,0.78,204.38,204.37,12.08146305]
[1755942354310,0.06,204.38,204.37,12.08146305]
[1755942354913,0.06,204.38,204.37,12.73146305]
[1755942356213,0.06,204.38,204.37,12.08146305]
[1755942356928,0.78,204.38,204.37,1.987762]
[1755942357087,0.78,204.38,204.37,0.03]
[1755942357287,0.78,204.38,204.37,26.03]
[1755942360294,0.78,204.38,204.37,0.03]
[1755942360616,0.78,204.38,204.37,26.03]
[1755942361415,0.78,204.38,204.37,0.03]
[1755942361915,24.46929506,204.38,204.37,0.03]
[1755942365795,0.06,204.38,204.37,0.03]
[1755942366005,0.75,204.38,204.37,0.03]
[1755942366909,0.06,204.38,204.37,0.03]
[1755942367934,0.75,204.38,204.37,0.03]
[1755942368634,0.06,204.38,204.37,0.03]
[1755942370623,0.06,204.38,204.37,10.79370105]
[1755942370822,0.06,204.38,204.37,21.61740205]
[1755942371228,0.06,204.38,204.37,10.853701]
[1755942371940,0.06,204.38,204.37,36.853701]
[1755942372431,0.06,204.38,204.37,26.03]
[1755942374329,10.84370105,204.38,204.37,0.03]
[1755942374514,0.75,204.38,204.37,0.03]
[1755942375641,0.06,204.38,204.37,0.03]
[1755942376206,0.75,204.38,204.37,0.03]
[1755942376821,0.06,204.38,204.37,0.03]
[1755942379447,0.06,204.38,204.37,10.79370105]
[1755942380612,0.06,204.38,204.37,0.7]
[1755942381139,0.06,204.38,204.37,2.658145]
[1755942381337,0.06,204.38,204.37,12.75184605]
[1755942382736,0.06,204.38,204.37,12.08184605]
[1755942382916,0.06,204.38,204.37,1.988145]
[1755942383116,0.06,204.38,204.37,0.03]
[1755942383315,0.06,204.38,204.37,1.988241]
[1755942383716,0.06,204.38,204.37,12.08194205]
[1755942384921,0.06,204.38,204.37,12.75194205]
[1755942385625,0.06,204.38,204.37,12.08194205]
[1755942386442,0.75,204.38,204.37,1.988241]
[1755942387760,14.34559401,204.38,204.37,0.03]
[1755942389623,0.06,204.38,204.37,0.71]
[1755942389817,0.06,204.38,204.37,0.03]
[1755942391640,0.73,204.38,204.37,0.03]
[1755942391850,0.73,204.38,204.37,1.988528]
[1755942392036,14.32559401,204.38,204.37,1.988528]
[1755942392232,24.41929506,204.38,204.37,0.03]
[1755942394857,13.65559401,204.38,204.37,0.03]
[1755942395567,14.32559401,204.38,204.37,0.03]
[1755942396053,24.41929506,204.38,204.37,0.03]
[1755942399034,13.65559401,204.38,204.37,0.03]
[1755942401158,23.74929506,204.38,204.37,0.03]
[1755942401460,24.41929506,204.38,204.37,0.03]
[1755942402553,14.32559401,204.38,204.37,0.03]
[1755942402755,24.41929506,204.38,204.37,0.03]
[1755942404855,24.7036182,204.38,204.37,0.03]
[1755942409658,159.1036182,204.38,204.37,0.03]
[1755942410661,39.59559401,204.36,204.35,0.03]
[1755942410832,23.9736182,204.36,204.35,0.03]
[1755942411037,24.6436182,204.36,204.35,0.03]
[1755942411238,26.6032012,204.36,204.35,0.03]
[1755942412256,39.87991715,204.35,204.34,0.03]
[1755942412447,50.6436182,204.35,204.34,0.03]
[1755942412947,129.6436182,204.35,204.34,0.03]
[1755942413638,131.6032982,204.35,204.34,0.03]
[1755942417654,13.59559401,204.31,204.3,0.03]
[1755942417846,10.09370105,204.31,204.3,0.03]
[1755942418046,23.68929506,204.31,204.3,0.03]
[1755942418657,24.6836182,204.31,204.3,0.03]
[1755942419168,23.9736182,204.31,204.3,0.03]
[1755942420966,24.6836182,204.31,204.3,0.03]
[1755942423168,23.9736182,204.31,204.3,0.03]
[1755942423666,24.6836182,204.31,204.3,0.03]
[1755942424574,23.9736182,204.31,204.3,0.03]
[1755942430080,13.59559401,204.31,204.3,0.03]
[1755942430380,13.59559401,204.31,204.3,0.7]
[1755942430592,23.68929506,204.31,204.3,0.7]
[1755942431874,23.68929506,204.31,204.3,0.03]
[1755942432074,23.68929506,204.31,204.3,0.7]
[1755942433272,0.06,204.32,204.3,0.7]
[1755942433778,0.06,204.32,204.3,2.6592]
[1755942434188,0.06,204.32,204.3,1.9892]
[1755942434372,0.06,204.32,204.31,0.67]
[1755942437068,0.06,204.35,204.31,20.88740205]
[1755942437382,0.06,204.38,204.34,10.09370105]
[1755942437585,0.06,204.38,204.37,10.09370105]
[1755942438087,0.06,204.38,204.37,10.76370105]
[1755942438403,0.06,204.38,204.37,12.72203705]
[1755942440595,0.06,204.38,204.37,2.628336]
[1755942440798,0.06,204.38,204.37,12.72203705]
[1755942445306,0.06,204.38,204.37,10.76370105]
[1755942447616,0.06,204.38,204.37,10.09370105]
[1755942449012,0.06,204.38,204.36,1.958336]
[1755942449213,0.06,204.38,204.37,10.79370105]
[1755942449618,0.06,204.38,204.36,2.658336]
[1755942449916,0.06,204.38,204.37,10.79370105]
[1755942455816,0.06,204.38,204.37,12.75194205]
[1755942456919,0.06,204.38,204.37,2.658241]
[1755942457124,0.06,204.38,204.37,10.09370105]
[1755942457297,0.06,204.38,204.35,12.05213405]
[1755942457501,0.69,204.37,204.35,1.958433]
[1755942457700,0.69,204.37,204.34,10.09370105]
[1755942458108,0.69,204.37,204.33,2.658625]
[1755942458431,0.69,204.37,204.34,10.79370105]
[1755942458590,0.69,204.36,204.33,1.958625]
[1755942458793,0.69,204.35,204.33,1.958625]
[1755942459002,13.59559401,204.34,204.33,1.958625]
[1755942459216,14.28559401,204.34,204.32,0.03]
[1755942459423,14.28559401,204.33,204.32,0.03]
[1755942459719,24.6636182,204.33,204.32,0.03]
[1755942464812,159.0636182,204.33,204.32,0.03]
[1755942468629,185.0636182,204.33,204.32,0.03]
[1755942475149,184.3736182,204.33,204.32,0.03]
[1755942475530,185.0636182,204.33,204.32,0.03]
[1755942481764,13.87991715,204.32,204.31,0.03]
[1755942482078,23.87991715,204.29,204.28,0.03]
[1755942482361,33.9736182,204.29,204.28,0.03]
[1755942482654,34.6436182,204.29,204.28,0.03]
[1755942482861,13.87991715,204.29,204.28,0.03]
[1755942483069,13.87991715,204.29,204.28,0.69]
[1755942483070,41.84017315,204.29,204.28,0.69]
[1755942483242,51.9338742,204.29,204.28,0.69]
[1755942483553,51.9338742,204.29,204.28,0.03]
[1755942483752,49.9736182,204.29,204.28,0.03]
[1755942485133,13.59559401,204.29,204.28,0.03]
[1755942485344,13.59559401,204.29,204.28,0.69]
[1755942486340,13.59559401,204.29,204.28,10.78370105]
[1755942486547,13.59559401,204.29,204.28,0.69]
[1755942487447,10.09370105,204.34,204.28,10.78370105]
[1755942487665,13.59559401,204.33,204.29,0.66]
[1755942489263,23.68929506,204.33,204.29,0.66]
[1755942489460,23.68929506,204.33,204.3,0.66]
[1755942489765,23.68929506,204.31,204.28,0.03]
[1755942489949,24.35929506,204.31,204.28,0.03]
[1755942490464,23.68929506,204.31,204.28,0.69]
[1755942490950,13.59559401,204.31,204.29,0.66]
[1755942491257,10.09370105,204.33,204.3,0.66]
[1755942491463,13.87991715,204.33,204.31,0.66]
[1755942491673,79.0,204.32,204.29,0.66]
[1755942491960,79.0,204.32,204.3,0.66]
[1755942492948,89.09370105,204.32,204.28,0.69]
[1755942493261,23.68929506,204.29,204.28,0.03]
[1755942493872,13.59559401,204.29,204.28,0.03]
[1755942495343,13.59559401,204.29,204.28,0.69]
[1755942495758,13.59559401,204.29,204.28,0.03]
[1755942497661,14.26559401,204.29,204.28,0.03]
[1755942497836,24.6436182,204.29,204.28,0.03]
[1755942498652,39.5386204,204.29,204.28,0.03]
[1755942499851,34.6436182,204.29,204.28,0.03]
[1755942500055,41.4990684,204.29,204.28,0.03]
[1755942500552,50.35929506,204.29,204.28,0.03]
[1755942500756,50.6436182,204.29,204.28,0.03]
[1755942501065,50.50145663,204.29,204.28,0.03]
[1755942501569,50.6436182,204.29,204.28,0.03]
[1755942502972,24.6436182,204.29,204.28,0.03]
[1755942503342,50.6436182,204.29,204.28,0.03]
[1755942503546,24.6436182,204.29,204.28,0.03]
[1755942504145,29.5386204,204.29,204.28,0.03]
[1755942504378,92.75991715,204.25,204.24,0.03]
[1755942504569,23.9736182,204.25,204.24,0.03]
[1755942505474,24.6436182,204.25,204.24,0.03]
[1755942508453,23.9736182,204.25,204.24,0.03]
[1755942511477,24.6936182,204.25,204.24,0.03]
[1755942511971,23.9736182,204.25,204.24,0.03]
[1755942512363,24.6936182,204.25,204.24,0.03]
[1755942512557,23.9736182,204.25,204.24,0.74]
[1755942515289,23.9736182,204.25,204.24,0.03]
[1755942516179,24.6936182,204.25,204.24,0.03]
[1755942516899,23.9736182,204.25,204.24,0.03]
[1755942517972,23.9736182,204.25,204.24,0.74]
[1755942519292,23.68929506,204.25,204.24,0.74]
[1755942519984,13.59559401,204.25,204.24,0.74]
[1755942520188,23.68929506,204.25,204.24,0.74]
[1755942521094,24.6936182,204.25,204.24,0.03]
[1755942523979,23.9736182,204.25,204.24,0.03]
[1755942524793,23.68929506,204.25,204.24,0.03]
[1755942525287,23.9736182,204.25,204.24,0.03]
[1755942525602,13.87991715,204.25,204.24,0.03]
[1755942525785,23.9736182,204.25,204.24,0.03]
[1755942526182,24.6936182,204.25,204.24,0.03]
[1755942526392,23.9736182,204.25,204.24,0.03]
[1755942528204,24.0336182,204.25,204.24,0.03]
[1755942531821,24.0336182,204.25,204.24,0.74]
[1755942532416,23.74929506,204.25,204.24,0.74]
[1755942532911,13.65559401,204.25,204.24,0.74]
[1755942535006,0.06,204.25,204.24,0.74]
[1755942535191,0.06,204.25,204.24,10.83370105]
[1755942536014,0.06,204.25,204.24,0.74]
[1755942541118,0.06,204.25,204.24,10.83370105]
[1755942542313,0.06,204.25,204.24,0.74]
[1755942542499,0.06,204.25,204.24,10.83370105]
[1755942543212,0.06,204.25,204.24,26.74]
[1755942543998,0.06,204.25,204.24,0.74]
[1755942544413,0.06,204.25,204.24,0.03]
[1755942544910,0.06,204.25,204.24,0.7]
[1755942545293,0.06,204.25,204.24,3.92385738]
[1755942545694,0.06,204.25,204.24,14.01755843]
[1755942545917,0.06,204.25,204.24,14.01722075]
[1755942546819,0.06,204.25,204.24,14.01687588]
[1755942549222,0.06,204.25,204.24,3.92317483]
[1755942549428,0.06,204.25,204.24,14.01687588]
[1755942553509,0.06,204.25,204.24,3.92317483]
[1755942553710,0.06,204.25,204.24,14.01687588]
[1755942555327,0.06,204.25,204.24,14.01313702]
[1755942555822,0.06,204.25,204.24,14.01238429]
[1755942556074,0.06,204.25,204.24,40.01238429]
[1755942558405,0.06,204.25,204.24,40.01222104]
[1755942560300,0.06,204.25,204.24,39.34222104]
[1755942560511,0.06,204.25,204.24,40.01222104]
[1755942563506,0.06,204.25,204.24,39.34222104]
[1755942564411,0.06,204.25,204.24,39.34060218]
[1755942565506,0.06,204.25,204.24,40.01060218]
[1755942565713,0.06,204.25,204.24,41.96999318]
[1755942570933,0.06,204.25,204.24,15.96999318]
[1755942571138,0.0148769,204.25,204.24,16.25431632]
[1755942571328,0.0148769,204.25,204.24,15.96999318]
[1755942571916,0.0148769,204.25,204.24,16.25431632]
[1755942572317,0.06,204.28,204.24,16.25431632]
[1755942572518,0.06,204.28,204.27,36.09370105]
[1755942572733,0.06,204.28,204.27,39.31060218]
[1755942573641,0.06,204.28,204.27,36.09370105]
[1755942573944,0.06,204.28,204.27,39.31463374]
[1755942574314,0.06,204.28,204.27,41.27364174]
[1755942576319,0.06,204.28,204.27,41.99364174]
[1755942576817,0.06,204.28,204.27,42.02393231]
[1755942577421,0.06,204.28,204.27,41.30393231]
[1755942577814,0.06,204.28,204.27,42.02393231]
[1755942579935,0.06,204.28,204.27,41.30393231]
[1755942582956,0.06,204.28,204.27,38.05270905]
[1755942583256,0.06,204.28,204.27,42.02608058]
[1755942583841,0.06,204.28,204.27,42.02423051]
[1755942584655,0.06,204.28,204.27,41.30423051]
[1755942584852,0.06,204.28,204.27,42.02423051]
[1755942587327,0.06,204.28,204.27,5.92856137]
[1755942587533,0.06,204.28,204.27,16.02226242]
[1755942589453,0.06,204.28,204.27,15.30226242]
[1755942590351,0.06,204.28,204.27,11.66951534]
[1755942591965,0.06,204.28,204.27,12.38951534]
[1755942592133,0.01488625,204.28,204.27,12.38951534]
[1755942592336,0.02570343,204.3,204.29,26.0]
[1755942592669,0.02570343,204.3,204.29,9.71267884]
[1755942593167,0.02570343,204.3,204.29,11.67158984]
[1755942593836,0.02570343,204.3,204.29,12.39158984]
[1755942595076,0.02570343,204.3,204.29,5.93063587]
[1755942595254,0.02570343,204.3,204.29,12.39158984]
[1755942595966,0.02570343,204.3,204.29,38.39158984]
[1755942601168,0.02570343,204.3,204.29,35.13986497]
[1755942601347,0.02570343,204.3,204.29,38.40522716]
[1755942602658,0.02570343,204.3,204.29,37.68522716]
[1755942604448,0.02570343,204.3,204.29,38.39522716]
[1755942605144,0.02570343,204.3,204.29,37.68522716]
[1755942606255,0.02570343,204.3,204.29,38.39522716]
[1755942607264,0.02570343,204.3,204.29,37.68522716]
[1755942607572,0.02570343,204.3,204.29,38.39522716]
[1755942610256,0.02570343,204.3,204.29,38.33301799]
[1755942610574,0.00570343,204.3,204.29,38.33301799]
[1755942610970,0.00570343,204.3,204.29,38.33306683]
[1755942612073,0.00570343,204.3,204.29,12.61738997]
[1755942612669,0.00570343,204.3,204.29,12.64738997]
[1755942613378,0.00570343,204.3,204.29,12.62914457]
[1755942613682,0.00570343,204.3,204.29,6.1681906]
[1755942613858,0.00570343,204.3,204.29,12.62914457]
[1755942616277,0.00570343,204.3,204.29,12.62797751]
[1755942619084,0.00570343,204.3,204.29,9.44418811]
[1755942619268,0.00570343,204.3,204.29,12.62633455]
[1755942620587,0.01632726,204.31,204.3,6.74527711]
[1755942620877,0.01632726,204.31,204.3,9.92742355]
[1755942621264,0.01632726,204.31,204.3,11.88585655]
[1755942621474,0.01632726,204.31,204.3,12.59585655]
[1755942628471,0.01632726,204.31,204.3,6.13490258]
[1755942628677,0.73632726,204.31,204.3,11.88525056]
[1755942628901,0.01632726,204.31,204.3,11.88525056]
[1755942629083,0.01632726,204.31,204.3,11.88524808]
[1755942629277,0.73632726,204.31,204.3,11.88524808]
[1755942629491,0.73632726,204.31,204.3,11.60092494]
[1755942630580,0.18283147,204.31,204.3,11.60092494]
[1755942630783,0.06,204.32,204.3,11.60092494]
[1755942630990,0.06,204.32,204.31,35.64249194]
[1755942631386,0.06,204.32,204.31,37.60111594]
[1755942632571,0.57,204.32,204.31,37.60111594]
[1755942633778,0.57,204.32,204.31,31.14016197]
[1755942634599,0.57,204.32,204.31,5.14016197]
[1755942634799,0.57,204.32,204.31,5.14365118]
[1755942636503,0.06,204.32,204.31,11.60460515]
[1755942636701,0.57,204.32,204.31,11.60460515]
[1755942636902,0.06,204.32,204.31,11.60460515]